fUSD/lending_fUSD_20251129
["ID","MTS","AMOUNT","RATE_DAILY","PERIOD"]
[395073991,1764402631619,-300.0,0.00015121,2]
[395073992,1764402631628,-383.27433594,0.00015121,2]
[395073993,1764402631641,-344.81,0.00015121,2]
[395073994,1764402631665,-471.91566406,0.00015121,2]
[395073995,1764402631674,-300.0,0.00015121,2]
[395073996,1764402631684,-408.8477,0.00015122,2]
[395073997,1764402631694,-2072.30820255,0.00015123,2]
[395073999,1764402631707,-5840.12672994,0.00015123,2]
[395074000,1764402631717,-759.31894595,0.00015123,2]
[395074001,1764402631728,-1213.74975405,0.00015123,2]
[395074002,1764402631737,-4269.37530023,0.00015123,2]
[395074003,1764402631749,-1650.0,0.00015123,2]
[395074004,1764402631760,-685.73001,0.00015123,2]
[395074005,1764402631788,-10193.40075898,0.00015123,2]
[395074006,1764402631800,-364.98643079,0.00015123,2]
[395074007,1764402631809,-2500.0,0.00015123,2]
[395074008,1764402631819,-166.66,0.00015153,2]
[395074009,1764402631828,-264.0,0.00015195,2]
[395074010,1764402631838,-10222.52594477,0.00015208,2]
[395074012,1764402631848,-1762.0,0.00015213,2]
[395074014,1764402631858,-264.0,0.00015214,2]
[395074018,1764402631869,-1762.0,0.00015216,2]
[395074019,1764402631878,-264.0,0.00015217,2]
[395074021,1764402631887,-267.46074303,0.00015218,2]
[395074023,1764402631896,-151.0,0.0001522,2]
[395074025,1764402631906,-507.70947575,0.00015222,2]
[395074027,1764402631917,-1547.83,0.00015222,2]
[395074029,1764402631926,-150.15689638,0.00015222,2]
[395074031,1764402631936,-214.52578355,0.00015222,2]
[395074033,1764402631945,-595.03796325,0.00015222,2]
[395074034,1764402631955,-153.66803778,0.00015222,2]
[395074035,1764402631965,-500.0,0.00015222,2]
[395074036,1764402631976,-483.80776979,0.00015222,2]
[395074037,1764402631986,-500.0,0.00015222,2]
[395074038,1764402631996,-500.0,0.00015222,2]
[395074039,1764402632006,-500.0,0.00015222,2]
[395074040,1764402632015,-500.0,0.00015222,2]
[395074041,1764402632025,-256.12923318,0.00015222,2]
[395074042,1764402632035,-500.0,0.00015222,2]
[395074043,1764402632045,-500.0,0.00015222,2]
[395074044,1764402632055,-500.0,0.00015222,2]
[395074045,1764402632064,-500.0,0.00015222,2]
[395074046,1764402632073,-500.0,0.00015222,2]
[395074047,1764402632083,-500.0,0.00015222,2]
[395074048,1764402632094,-500.0,0.00015222,2]
[395074049,1764402632104,-500.0,0.00015222,2]
[395074050,1764402632114,-500.0,0.00015222,2]
[395074051,1764402632124,-500.0,0.00015222,2]
[395074052,1764402632133,-500.0,0.00015222,2]
[395074053,1764402632144,-500.0,0.00015222,2]
[395074054,1764402632154,-592.30545286,0.00015222,2]
[395074055,1764402632166,-35.18146093,0.00015222,2]
[395074056,1764402632175,-500.0,0.00015222,2]
[395074057,1764402632184,-500.0,0.00015222,2]
[395074058,1764402632194,-500.0,0.00015222,2]
[395074059,1764402632203,-360.31853907,0.00015222,2]
[395074060,1764402633126,-139.68146093,0.00015222,2]
[395074061,1764402633135,-142.65140788,0.00015222,2]
[395074062,1764402633147,-357.34859212,0.00015222,2]
[395074063,1764402633157,-500.0,0.00015222,2]
[395074064,1764402633167,-302.09852495,0.00015222,2]
[395074065,1764402633177,-183.19384354,0.00015222,2]
[395074066,1764402633195,-455.79650015,0.00015222,2]
[395074067,1764402633205,-156.69183458,0.00015222,2]
[395074068,1764402633215,-500.0,0.00015222,2]
[395074069,1764402633225,-500.0,0.00015222,2]
[395074070,1764402633234,-500.0,0.00015222,2]
[395074071,1764402633243,-500.0,0.00015222,2]
[395074072,1764402633252,-500.0,0.00015222,2]
[395074073,1764402633262,-500.0,0.00015222,2]
[395074074,1764402633271,-500.0,0.00015222,2]
[395074075,1764402633280,-500.0,0.00015222,2]
[395074076,1764402633289,-500.0,0.00015222,2]
[395074077,1764402633299,-500.0,0.00015222,2]
[395074078,1764402633309,-482.10899322,0.00015222,2]
[395074079,1764402633318,-500.0,0.00015222,2]
[395074080,1764402633327,-1724.633,0.00015223,2]
[395074081,1764402633336,-164.715,0.00015223,2]
[395074082,1764402633345,-556.31379754,0.00015223,2]
[395074083,1764402633357,-477.97880591,0.00015223,2]
[395074084,1764402633369,-1001.94209764,0.00015223,2]
[395074085,1764402633497,-4990.97243434,0.00015223,2]
[395074087,1764402637629,-630.42350612,0.00014987,2]
[395074088,1764402637684,-761.11030798,0.00014987,2]
[395074089,1764402637695,-682.3494626,0.00015223,2]
[395074090,1764402637926,-863.27809045,0.00015223,2]
[395074092,1764402639572,-485.27256936,0.00015223,2]
[395074093,1764402639732,-583.87999999,0.00015223,2]
[395074104,1764402642782,-66122.88961216,0.00015223,2]
[395074105,1764402642820,-402.14210015,0.00015223,2]
[395074110,1764402645573,-459.58986104,0.00015223,2]
[395074111,1764402645626,-13366.72824518,0.00015223,2]
[395074113,1764402656995,-301.12915753,0.00037875,30]
[395074114,1764402657052,-300.0,0.00037875,30]
[395074115,1764402657114,-300.0,0.00037875,30]
[395074116,1764402657172,-365.3682991,0.00037875,30]
[395074117,1764402657229,-300.00000001,0.00037875,30]
[395074118,1764402657288,-301.28020266,0.00037875,30]
[395074119,1764402657343,-644.49445734,0.00037875,30]
[395074120,1764402657397,-300.0,0.00037875,30]
[395074121,1764402657453,-300.0,0.00037875,30]
[395074122,1764402657507,-300.87443563,0.00037875,30]
[395074123,1764402657564,-300.00000001,0.00037875,30]
[395074124,1764402657621,-300.0,0.00037875,30]
[395074125,1764402657678,-506.81143776,0.00037875,30]
[395074126,1764402657751,-819709.71000902,0.00041,120]
[395074127,1764402657806,-2351.0,0.00041,30]
[395074128,1764402657859,-2352.99984168,0.00041,30]
[395074129,1764402657915,-2351.0,0.00041,30]
[395074130,1764402657970,-1061.1026007,0.00041,30]
[395074131,1764402658023,-500.000001,0.00041,120]
[395074132,1764402658078,-250.0000001,0.00041,97]
[395074133,1764402658135,-717.04239481,0.00041,120]
[395074134,1764402658188,-261.4654679,0.00041,120]
[395074135,1764402658240,-1000.0,0.00041,30]
[395074136,1764402658294,-895.0,0.00041,30]
[395074137,1764402658350,-536.9611412,0.00041,30]
[395074138,1764402658407,-432.74,0.00041,120]
[395074139,1764402658462,-912.63,0.00041,120]
[395074140,1764402658520,-1000.0,0.00041,120]
[395074141,1764402658575,-578.31555631,0.00041,30]
[395074142,1764402658630,-438.79,0.00041,30]
[395074143,1764402658686,-172.53714454,0.00041,60]
[395074144,1764402658742,-166.3,0.00041,120]
[395074145,1764402658797,-901.97444576,0.00041,120]
[395074146,1764402658852,-588.74358997,0.00041,30]
[395074147,1764402658907,-5000.0,0.00041,120]
[395074148,1764402658963,-1000.0,0.00041,120]
[395074149,1764402659017,-3986.2311816,0.00041,120]
[395074150,1764402659071,-152.0,0.00041,30]
[395074151,1764402659480,-7307.0,0.00041,120]
[395074152,1764402659535,-2149.0,0.00041,120]
[395074153,1764402659591,-157.10710291,0.00041,60]
[395074154,1764402659645,-377.0,0.00041,30]
[395074155,1764402659699,-377.0,0.00041,30]
[395074156,1764402659753,-377.0,0.00041,30]
[395074157,1764402659805,-377.0,0.00041,30]
[395074158,1764402659858,-377.0,0.00041,30]
[395074159,1764402659913,-377.0,0.00041,30]
[395074160,1764402659969,-377.0,0.00041,30]
[395074161,1764402660019,-377.0,0.00041,30]
[395074162,1764402660073,-377.0,0.00041,30]
[395074163,1764402660129,-377.0,0.00041,30]
[395074164,1764402660186,-377.0,0.00041,30]
[395074165,1764402660241,-377.0,0.00041,30]
[395074166,1764402660293,-377.0,0.00041,30]
[395074167,1764402660348,-377.0,0.00041,30]
[395074168,1764402660402,-377.0,0.00041,30]
[395074169,1764402660453,-377.0,0.00041,30]
[395074170,1764402660507,-377.0,0.00041,30]
[395074171,1764402660560,-377.0,0.00041,30]
[395074172,1764402660615,-377.0,0.00041,30]
[395074173,1764402660668,-377.0,0.00041,30]
[395074174,1764402660725,-377.0,0.00041,30]
[395074175,1764402660779,-377.0,0.00041,30]
[395074176,1764402660833,-377.0,0.00041,30]
[395074177,1764402660888,-377.0,0.00041,30]
[395074178,1764402660941,-377.0,0.00041,30]
[395074179,1764402660993,-377.0,0.00041,30]
[395074180,1764402661046,-377.0,0.00041,30]
[395074181,1764402661104,-150.15,0.00041016,120]
[395074182,1764402661161,-153.74,0.00041018,120]
[395074183,1764402661217,-152.06,0.00041018,120]
[395074184,1764402661272,-150.0,0.00041035,120]
[395074185,1764402661328,-169.02,0.00041052,120]
[395074186,1764402661380,-1209.95143835,0.0004108,30]
[395074187,1764402661433,-941.68815,0.00041088,30]
[395074188,1764402661485,-500.0,0.00041095,90]
[395074189,1764402661542,-500.0,0.00041095,90]
[395074190,1764402661600,-500.0,0.00041095,90]
[395074191,1764402661654,-500.0,0.00041095,90]
[395074192,1764402661711,-449.8603102,0.00041095,90]
[395074193,1764402661767,-1449.95,0.00041096,120]
[395074194,1764402661822,-12521.28,0.00041096,120]
[395074195,1764402661880,-1364.626421,0.00041096,50]
[395074196,1764402661936,-1364.626421,0.00041096,50]
[395074197,1764402661993,-1364.626421,0.00041096,50]
[395074198,1764402662052,-1364.626421,0.00041096,50]
[395074199,1764402662114,-1364.626421,0.00041096,50]
[395074200,1764402662170,-1364.626421,0.00041096,50]
[395074201,1764402662226,-1364.626421,0.00041096,50]
[395074202,1764402662280,-1364.626421,0.00041096,50]
[395074203,1764402662337,-1364.626421,0.00041096,50]
[395074204,1764402662393,-1364.626421,0.00041096,50]
[395074205,1764402662448,-1364.626421,0.00041096,50]
[395074206,1764402662506,-1364.626421,0.00041096,50]
[395074207,1764402662565,-1364.626421,0.00041096,50]
[395074208,1764402662624,-1364.626421,0.00041096,50]
[395074209,1764402662684,-1364.626421,0.00041096,50]
[395074210,1764402662742,-1364.626421,0.00041096,50]
[395074211,1764402662799,-1364.626421,0.00041096,50]
[395074212,1764402662856,-1364.626421,0.00041096,50]
[395074213,1764402662914,-1364.626421,0.00041096,50]
[395074214,1764402662973,-1364.626419,0.00041096,50]
[395074215,1764402663032,-1000.0,0.00041096,120]
[395074216,1764402663088,-344.0,0.000411,120]
[395074217,1764402663149,-1619.0,0.000411,120]
[395074218,1764402663213,-150.15,0.00041116,120]
[395074219,1764402663277,-153.74,0.00041118,120]
[395074220,1764402663341,-152.06,0.00041118,120]
[395074221,1764402663406,-169.02,0.00041152,120]
[395074222,1764402663472,-150.0,0.00041201,120]
[395074223,1764402663539,-150.15,0.00041216,120]
[395074224,1764402663603,-153.74,0.00041218,120]
[395074225,1764402663669,-152.06,0.00041218,120]
[395074226,1764402663744,-153.0,0.0004123,120]
[395074227,1764402663810,-169.02,0.00041252,120]
[395074228,1764402663875,-150.0,0.00041281,120]
[395074229,1764402663939,-941.68815,0.00041288,30]
[395074230,1764402664002,-1002.04,0.000413,120]
[395074231,1764402664063,-2257.774857,0.000413,37]
[395074232,1764402664124,-150.0,0.00041305,30]
[395074233,1764402664185,-907.45809096,0.00041305,30]
[395074234,1764402664249,-150.15,0.00041316,120]
[395074235,1764402664311,-153.74,0.00041318,120]
[395074236,1764402664373,-152.06,0.00041318,120]
[395074237,1764402664432,-211.8,0.0004133,120]
[395074238,1764402664493,-1445.98288961,0.0004133,120]
[395074239,1764402664555,-169.02,0.00041352,120]
[395074240,1764402664621,-7011.94112108,0.0004138,90]
[395074241,1764402664687,-500.0,0.000414,120]
[395074242,1764402664753,-150.15,0.00041416,120]
[395074243,1764402664816,-153.74,0.00041418,120]
[395074244,1764402664881,-152.06,0.00041418,120]
[395074245,1764402664943,-1672.51790515,0.0004142,120]
[395074246,1764402665004,-4000.0,0.00041424,31]
[395074247,1764402665067,-169.02,0.00041452,120]
[395074248,1764402665128,-206.987562,0.00041459,120]
[395074249,1764402665192,-150.0,0.00041463,120]
[395074250,1764402665251,-177.85,0.00041468,30]
[395074251,1764402665311,-177.85,0.00041468,30]
[395074252,1764402665375,-177.85,0.00041468,30]
[395074253,1764402665438,-177.41,0.00041468,30]
[395074254,1764402665498,-1284.24059914,0.00041469,120]
[395074255,1764402665912,-941.68815,0.00041488,30]
[395074256,1764402665971,-1186.05,0.000415,60]
[395074257,1764402666029,-266.20406772,0.000415,120]
[395074258,1764402666086,-697.32404269,0.000415,120]
[395074259,1764402666144,-302.53778834,0.000415,120]
[395074260,1764402666203,-4000.0,0.000415,120]
[395074261,1764402666260,-1653.07774472,0.000415,30]
[395074262,1764402666323,-150.15,0.00041516,120]
[395074263,1764402666384,-153.74,0.00041518,120]
[395074264,1764402666444,-152.06,0.00041518,120]
[395074265,1764402666506,-150.0,0.00041537,120]
[395074266,1764402666565,-524.2993126,0.00041549,30]
[395074267,1764402666625,-169.02,0.00041552,120]
[395074268,1764402666684,-150.0,0.00041555,60]
[395074269,1764402666746,-40959.406238,0.000416,120]
[395074270,1764402666807,-150.15,0.00041616,120]
[395074271,1764402666870,-153.74,0.00041618,120]
[395074272,1764402666931,-152.06,0.00041618,120]
[395074273,1764402666991,-169.02,0.00041652,120]
[395074274,1764402667049,-2106.81450265,0.0004166,120]
[395074275,1764402667107,-941.68815,0.00041688,30]
[395074276,1764402667164,-1211.6537,0.000417,120]
[395074277,1764402667224,-150.15,0.00041716,120]
[395074278,1764402667285,-153.74,0.00041718,120]
[395074279,1764402667347,-152.06,0.00041718,120]
[395074280,1764402667421,-169.03919845,0.00041752,120]
[395074281,1764402667483,-150.0,0.0004176,120]
[395074282,1764402667542,-233.91867342,0.00041799,120]
[395074283,1764402667601,-204.27948651,0.000418,30]
[395074284,1764402667660,-2085.21484303,0.000418,120]
[395074285,1764402667721,-1500.0,0.000418,37]
[395074286,1764402667780,-2400.0,0.00041804,60]
[395074287,1764402667839,-900.0,0.00041804,60]
[395074288,1764402667898,-2100.0,0.00041804,60]
[395074289,1764402667960,-150.15,0.00041816,120]
[395074290,1764402668022,-153.74,0.00041818,120]
[395074291,1764402668082,-152.06,0.00041818,120]
[395074292,1764402668142,-300.29155,0.00041818,108]
[395074293,1764402668202,-207.36177663,0.00041838,120]
[395074294,1764402668261,-221.83973804,0.00041838,120]
[395074295,1764402668321,-212.16264182,0.00041838,120]
[395074296,1764402668382,-221.83973795,0.00041838,120]
[395074297,1764402668441,-211.59720829,0.00041838,120]
[395074298,1764402668502,-150.0,0.0004185,120]
[395074299,1764402668562,-1739892.7969,0.00041863,30]
[395074300,1764402668620,-803.0,0.0004188,120]
[395074301,1764402668679,-941.68815,0.00041888,30]
[395074302,1764402668745,-421.80095898,0.000419,120]
[395074303,1764402668803,-5000.0,0.000419,120]
[395074304,1764402668871,-44199.01624408,0.000419,30]
[395074305,1764402668933,-275849.41106343,0.000419,120]
[395074306,1764402668996,-150.15,0.00041916,120]
[395074307,1764402669057,-153.74,0.00041918,120]
[395074308,1764402669120,-152.06,0.00041918,120]
[395074309,1764402669180,-1000.0,0.00041918,30]
[395074310,1764402669240,-1000.0,0.00041918,30]
[395074311,1764402669299,-1000.0,0.00041918,30]
[395074312,1764402669357,-1000.0,0.00041918,30]
[395074313,1764402669416,-1000.0,0.00041918,30]
[395074314,1764402669474,-1000.0,0.00041918,30]
[395074315,1764402669532,-1000.0,0.00041918,30]
[395074316,1764402669591,-1000.0,0.00041918,30]
[395074317,1764402669655,-179.0,0.00041918,30]
[395074318,1764402669715,-1200.0,0.00041958,30]
[395074319,1764402669782,-1200.0,0.00041958,30]
[395074320,1764402669843,-1200.0,0.00041958,30]
[395074321,1764402669904,-168.0,0.00041959,90]
[395074322,1764402669965,-592.0,0.00041975,30]
[395074323,1764402670026,-630.0,0.00041975,60]
[395074324,1764402670089,-674.24669946,0.00041999,120]
[395074325,1764402670154,-50000.0,0.00042,42]
[395074326,1764402670224,-50000.0,0.00042,32]
[395074327,1764402670287,-200.0,0.00042,120]
[395074328,1764402670348,-2500.0,0.00042,30]
[395074329,1764402670408,-10613.23595964,0.00042,30]
[395074330,1764402670471,-1000.0,0.00042,120]
[395074331,1764402670537,-506.0,0.00042,120]
[395074332,1764402670596,-550.38151774,0.00042,120]
[395074333,1764402670659,-276.6813055,0.00042,120]
[395074334,1764402670726,-1013.43215696,0.00042,120]
[395074335,1764402670786,-33076.76748877,0.00042,120]
[395074336,1764402670848,-500.0,0.00042,120]
[395074337,1764402670908,-1314.21,0.00042,120]
[395074338,1764402670968,-353.3574332,0.00042,120]
[395074339,1764402671029,-7587.0,0.00042,120]
[395074340,1764402671091,-173.31324852,0.00042,30]
[395074341,1764402671156,-254.08495993,0.00042,120]
[395074342,1764402671218,-4464.77,0.00042,30]
[395074343,1764402671277,-2766.0,0.00042,120]
[395074344,1764402671336,-34124.32608276,0.00042,120]
[395074345,1764402671394,-2900.0,0.0004201,120]
[395074346,1764402671453,-700.16349368,0.0004201,38]
[395074347,1764402671518,-150.15,0.00042016,120]
[395074348,1764402671580,-153.74,0.00042018,120]
[395074349,1764402671642,-152.06,0.00042018,120]
[395074350,1764402671709,-300.69,0.00042027,120]
[395074351,1764402671770,-150.0,0.00042056,120]
[395074352,1764402671830,-158.52,0.00042056,120]
[395074353,1764402671889,-1200.0,0.00042058,30]
[395074354,1764402671949,-50000.0,0.00042072,30]
[395074355,1764402672009,-50000.0,0.00042072,31]
[395074356,1764402672071,-50000.0,0.00042072,32]
[395074357,1764402672134,-50000.0,0.00042072,33]
[395074358,1764402672549,-50000.0,0.00042072,34]
[395074359,1764402672610,-50000.0,0.00042072,35]
[395074360,1764402672670,-50000.0,0.00042072,36]
[395074361,1764402672739,-50000.0,0.00042072,37]
[395074362,1764402672799,-50000.0,0.00042072,38]
[395074363,1764402672860,-50000.0,0.00042072,39]
[395074364,1764402672949,-159.29,0.00042073,30]
[395074365,1764402673008,-250.0,0.00042077,30]
[395074366,1764402673063,-300.0,0.00042077,30]
[395074367,1764402673118,-250.0,0.00042077,31]
[395074368,1764402673171,-311.1,0.00042077,31]
[395074369,1764402673227,-250.0,0.00042077,32]
[395074370,1764402673282,-322.6107,0.00042077,32]
[395074371,1764402673338,-250.0,0.00042077,33]
[395074372,1764402673394,-250.0,0.00042077,34]
[395074373,1764402673451,-250.0,0.00042077,35]
[395074374,1764402673508,-250.0,0.00042077,60]
[395074375,1764402673565,-250.0,0.00042077,90]
[395074376,1764402673622,-500.0,0.00042077,30]
[395074377,1764402673681,-500.0,0.00042077,31]
[395074378,1764402673739,-500.0,0.00042077,32]
[395074379,1764402673799,-500.0,0.00042077,33]
[395074380,1764402673860,-500.0,0.00042077,30]
[395074381,1764402673920,-500.0,0.00042077,34]
[395074382,1764402673980,-500.0,0.00042077,30]
[395074383,1764402674038,-518.5,0.00042077,31]
[395074384,1764402674095,-500.0,0.00042077,35]
[395074385,1764402674152,-537.6845,0.00042077,32]
[395074386,1764402674210,-500.0,0.00042077,31]
[395074387,1764402674268,-500.0,0.00042077,60]
[395074388,1764402674330,-557.5788265,0.00042077,33]
[395074389,1764402674393,-500.0,0.00042077,32]
[395074390,1764402674452,-500.0,0.00042077,90]
[395074391,1764402674511,-500.0,0.00042077,33]
[395074392,1764402674573,-500.0,0.00042077,34]
[395074393,1764402674629,-500.0,0.00042077,35]
[395074394,1764402674689,-151.0,0.00042077,30]
[395074395,1764402674756,-500.0,0.00042077,60]
[395074396,1764402674814,-151.0,0.00042077,31]
[395074397,1764402674873,-500.0,0.00042077,90]
[395074398,1764402674932,-151.0,0.00042077,32]
[395074399,1764402674991,-151.0,0.00042077,33]
[395074400,1764402675048,-151.0,0.00042077,34]
[395074401,1764402675106,-151.0,0.00042077,35]
[395074402,1764402675164,-151.0,0.00042077,60]
[395074403,1764402675221,-151.0,0.00042077,90]
[395074404,1764402675277,-500.0,0.00042077,30]
[395074405,1764402675334,-500.0,0.00042077,31]
[395074406,1764402675389,-500.0,0.00042077,32]
[395074407,1764402675448,-500.0,0.00042077,33]
[395074408,1764402675507,-500.0,0.00042077,34]
[395074409,1764402675563,-500.0,0.00042077,35]
[395074410,1764402675620,-500.0,0.00042077,60]
[395074411,1764402675677,-500.0,0.00042077,90]
[395074412,1764402675735,-200.0,0.00042077,30]
[395074413,1764402675793,-220.0,0.00042077,30]
[395074414,1764402675849,-220.0,0.00042077,31]
[395074415,1764402675909,-220.0,0.00042077,32]
[395074416,1764402675968,-1097.0,0.00042078,30]
[395074417,1764402676026,-1097.0,0.00042078,30]
[395074418,1764402676083,-1558.79479247,0.00042095,30]
[395074419,1764402676142,-150.15,0.00042116,120]
[395074420,1764402676201,-153.74,0.00042118,120]
[395074421,1764402676260,-152.06,0.00042118,120]
[395074422,1764402676318,-228.34595254,0.00042121,120]
[395074423,1764402676378,-150.0,0.00042123,120]
[395074424,1764402676440,-150.0,0.00042144,120]
[395074425,1764402676498,-150.05,0.00042198,30]
[395074426,1764402676559,-150.15,0.00042216,120]
[395074427,1764402676619,-153.75,0.00042218,120]
[395074428,1764402676680,-152.06,0.00042218,120]
[395074429,1764402676740,-150.0,0.0004223,120]
[395074430,1764402676800,-302.9,0.00042286,30]
[395074431,1764402676861,-150.15,0.00042316,120]
[395074432,1764402676926,-152.06,0.00042318,120]
[395074433,1764402676983,-2400.0,0.00042352,60]
[395074434,1764402677042,-900.0,0.00042352,60]
[395074435,1764402677100,-2100.0,0.00042352,60]
[395074436,1764402677161,-150.15,0.00042416,120]
[395074437,1764402677221,-152.06,0.00042418,120]
[395074438,1764402677279,-150.0,0.00042428,120]
[395074439,1764402677337,-721.25963082,0.0004244,120]
[395074440,1764402677393,-200.0,0.000425,120]
[395074441,1764402677463,-14579.5,0.000425,120]
[395074442,1764402677526,-150.15,0.00042516,120]
[395074443,1764402677588,-152.06,0.00042518,120]
[395074444,1764402677648,-150.0,0.00042553,120]
[395074445,1764402677710,-1619.0,0.000426,120]
[395074446,1764402677773,-150.15,0.00042616,120]
[395074447,1764402677834,-152.06,0.00042618,120]
[395074448,1764402677893,-150.0,0.00042647,120]
[395074449,1764402677953,-999.999999,0.000427,30]
[395074450,1764402678013,-150.15,0.00042716,120]
[395074451,1764402678075,-152.06,0.00042718,120]
[395074452,1764402678135,-150.0,0.0004274,120]
[395074453,1764402678195,-207.36177663,0.00042751,120]
[395074454,1764402678253,-574.2064926,0.000428,120]
[395074455,1764402678314,-150.15,0.00042816,120]
[395074456,1764402678376,-152.06,0.00042818,120]
[395074457,1764402678438,-150.15,0.00042916,120]
[395074458,1764402678499,-152.06,0.00042918,120]
[395074459,1764402678557,-222.34384055,0.00042934,120]
[395074460,1764402678618,-202.0,0.0004295,30]
[395074461,1764402678988,-999.826284,0.00043,120]
[395074462,1764402679047,-38759.44451413,0.00043,120]
[395074463,1764402679104,-5007.5064105,0.00043,30]
[395074464,1764402679162,-1023.98520565,0.00043,120]
[395074465,1764402679220,-348.04811087,0.00043,120]
[395074466,1764402679281,-195.9177609,0.00043,120]
[395074467,1764402679339,-204.23,0.00043014,120]
[395074468,1764402679400,-150.15,0.00043016,120]
[395074469,1764402679461,-152.06,0.00043018,120]
[395074470,1764402679522,-418.03,0.00043106,30]
[395074471,1764402679582,-418.03,0.00043106,30]
[395074472,1764402679641,-418.03,0.00043106,30]
[395074473,1764402679701,-418.03,0.00043106,30]
[395074474,1764402679760,-418.03,0.00043106,30]
[395074475,1764402679822,-150.15,0.00043116,120]
[395074476,1764402679883,-152.06,0.00043118,120]
[395074477,1764402679945,-155.22,0.00043151,120]
[395074478,1764402680004,-150.0,0.00043188,120]
[395074479,1764402680062,-17216.40781912,0.000432,120]
[395074480,1764402680120,-1417.61525462,0.00043215,30]
[395074481,1764402680186,-150.15,0.00043216,120]
[395074482,1764402680252,-152.06,0.00043218,120]
[395074483,1764402680311,-2542.8532,0.0004322,30]
[395074484,1764402680368,-1500.0,0.000433,120]
[395074485,1764402680426,-150.18320533,0.00043316,120]
[395074486,1764402680487,-152.06,0.00043318,120]
[395074487,1764402680547,-449.86,0.00043322,120]
[395074488,1764402680612,-152.06,0.00043418,120]
[395074489,1764402680671,-2400.0,0.00043448,60]
[395074490,1764402680729,-900.0,0.00043448,60]
[395074491,1764402680790,-2100.0,0.00043448,60]
[395074492,1764402680850,-150.0,0.00043449,120]
[395074493,1764402680914,-152.06,0.00043518,120]
[395074494,1764402680975,-152.15,0.00043618,120]
[395074495,1764402681035,-207.36177663,0.00043664,120]
[395074496,1764402681093,-215.03564916,0.00043664,120]
[395074497,1764402681151,-545.11530453,0.000437,120]
[395074498,1764402681211,-150.0,0.00043757,120]
[395074499,1764402681268,-500.57691811,0.000438,30]
[395074500,1764402681325,-1119.61496418,0.000438,30]
[395074501,1764402681383,-835.65374453,0.000438,120]
[395074502,1764402681439,-4862.39384247,0.000438,120]
[395074503,1764402681502,-2420.86,0.000438,120]
[395074504,1764402681560,-150.0,0.00043847,120]
[395074505,1764402681621,-5000.0,0.000439,120]
[395074506,1764402681680,-155.92963117,0.000439,120]
[395074507,1764402681738,-585.65,0.00043928,30]
[395074508,1764402681799,-150.0,0.00043958,120]
[395074509,1764402681859,-150.0,0.00043962,120]
[395074510,1764402681918,-2524.76499171,0.00043987,120]
[395074511,1764402681979,-501.679821,0.00043999,120]
[395074512,1764402682039,-300.0,0.00044,120]
[395074513,1764402682099,-999.8838067,0.00044,120]
[395074514,1764402682158,-176.0,0.00044,120]
[395074515,1764402682215,-152.0,0.00044,120]
[395074516,1764402682275,-37411.09376867,0.00044,120]
[395074517,1764402682334,-660.10577626,0.00044,120]
[395074518,1764402682395,-249.41089616,0.00044,120]
[395074519,1764402682454,-290.39047724,0.00044,120]
[395074520,1764402682512,-549.731122,0.00044,57]